lending/lending_fUSD_20241120
["ID","MTS","AMOUNT","RATE_DAILY","PERIOD"]
[342794916,1732140854060,-500.0,0.00059726,120]
[342794917,1732140854071,-1359.85,0.00059726,120]
[342794918,1732140854081,-2324.44,0.00059726,120]
[342794919,1732140854090,-535.04,0.00059726,120]
[342794920,1732140854100,-4406.16,0.00059726,120]
[342794921,1732140854110,-1128.91,0.00059726,120]
[342794922,1732140854121,-500.0,0.00059726,120]
[342794923,1732140854130,-665.96,0.00059726,120]
[342794924,1732140854139,-980.99,0.00059726,120]
[342794925,1732140854149,-580.64,0.00059726,120]
[342794926,1732140854159,-892.8,0.00059726,120]
[342794927,1732140854168,-1436.75,0.00059726,120]
[342794928,1732140854180,-558.99,0.00059726,120]
[342794929,1732140854192,-778.22,0.00059726,120]
[342794930,1732140854202,-1153.44,0.00059726,7]
[342794931,1732140854212,-3675.23,0.00059726,120]
[342794932,1732140854222,-2548.81,0.00059726,120]
[342794933,1732140854233,-3167.44,0.00059726,120]
[342794934,1732140854243,-2249.83,0.00059726,120]
[342794935,1732140854255,-11179.92,0.00059726,21]
[342794936,1732140854264,-500.0,0.00059726,120]
[342794937,1732140854276,-859.5,0.00059726,120]
[342794938,1732140854288,-922.45,0.00059726,120]
[342794939,1732140854298,-3662.75,0.00059726,120]
[342794940,1732140854307,-1994.35,0.00059726,120]
[342794941,1732140854316,-500.0,0.00059726,120]
[342794942,1732140854325,-1363.9,0.00059726,120]
[342794943,1732140854335,-66449.02,0.00059726,5]
[342794944,1732140854344,-1162.72,0.00059726,120]
[342794945,1732140854354,-1114.06,0.00059726,120]
[342794946,1732140854363,-1815.23,0.00059726,120]
[342794947,1732140854372,-583.30147895,0.00059726,120]
[342794948,1732140854382,-1159.58,0.00059726,120]
[342794949,1732140854392,-500.0,0.00059726,120]
[342794950,1732140854401,-6111.41,0.00059726,120]
[342794951,1732140854411,-2826.01,0.00059726,120]
[342794952,1732140854420,-1031.65,0.00059726,120]
[342794953,1732140854430,-532.59,0.00059726,120]
[342794954,1732140854440,-553.58,0.00059726,120]
[342794955,1732140854449,-754.16,0.00059726,120]
[342794956,1732140854459,-500.0,0.00059726,120]
[342794957,1732140854469,-3918.3,0.00059726,120]
[342794958,1732140854479,-2233.29,0.00059726,120]
[342794959,1732140854489,-2901.67,0.00059726,120]
[342794960,1732140854500,-687.41,0.00059726,120]
[342794961,1732140854509,-500.0,0.00059726,120]
[342794962,1732140854519,-1140.89,0.00059726,120]
[342794963,1732140854529,-743.27,0.00059726,120]
[342794964,1732140854544,-4798.42,0.00059726,120]
[342794965,1732140854554,-884.65,0.00059726,120]
[342794966,1732140854563,-589.18,0.00059726,120]
[342794967,1732140854574,-1609.97,0.00059726,120]
[342794968,1732140854584,-500.0,0.00059726,120]
[342794969,1732140854594,-548.16,0.00059726,120]
[342794970,1732140854603,-1086.88,0.00059726,120]
[342794971,1732140854613,-1158.88,0.00059726,120]
[342794972,1732140854624,-725.57,0.00059726,120]
[342794973,1732140854634,-842.19,0.00059726,120]
[342794974,1732140854644,-7009.95,0.00059726,120]
[342794975,1732140854654,-2674.97,0.00059726,120]
[342794976,1732140854664,-2713.37,0.00059726,120]
[342794977,1732140854674,-1095.19,0.00059726,120]
[342794978,1732140854684,-500.0,0.00059726,120]
[342794979,1732140854693,-5192.12,0.00059726,120]
[342794980,1732140854703,-6968.45,0.00059726,60]
[342794981,1732140854712,-3162.29,0.00059726,120]
[342794982,1732140854722,-788.84,0.00059726,120]
[342794983,1732140854732,-595.36838483,0.00059726,120]
[342794984,1732140854741,-4873.91,0.00059726,120]
[342794985,1732140854750,-565.84,0.00059726,120]
[342794986,1732140854761,-736.59,0.00059726,120]
[342794987,1732140854770,-778.41,0.00059726,120]
[342794988,1732140854780,-2123.81,0.00059726,120]
[342794989,1732140854792,-1135.51,0.00059726,120]
[342794990,1732140854801,-801.02,0.00059726,120]
[342794991,1732140854811,-1176.11,0.00059726,120]
[342794992,1732140854820,-6444.84,0.00059726,120]
[342794993,1732140854830,-840.5,0.00059726,120]
[342794994,1732140854839,-1149.75,0.00059726,120]
[342794995,1732140854849,-538.19,0.00059726,120]
[342794996,1732140854859,-1918.75,0.00059726,120]
[342794997,1732140854869,-527.39,0.00059726,120]
[342794998,1732140854879,-846.33,0.00059726,120]
[342794999,1732140854888,-655.97,0.00059726,120]
[342795000,1732140854898,-1437.44,0.00059726,120]
[342795001,1732140854908,-1217.61,0.00059726,120]
[342795002,1732140854920,-7358.45,0.00059726,120]
[342795003,1732140854930,-1149.18,0.00059726,120]
[342795004,1732140854940,-613.35,0.00059726,120]
[342795005,1732140854949,-924.66,0.00059726,120]
[342795006,1732140854959,-1147.11,0.00059726,120]
[342795007,1732140854969,-1368.4,0.00059726,120]
[342795008,1732140854978,-1974.94,0.00059726,120]
[342795009,1732140854987,-13034.59,0.00059726,120]
[342795010,1732140854996,-17457.35,0.00059726,120]
[342795011,1732140855006,-2237.64,0.00059726,120]
[342795012,1732140855015,-2737.65,0.00059726,120]
[342795013,1732140855026,-551.05,0.00059726,120]
[342795014,1732140855039,-2479.1,0.00059726,120]
[342795015,1732140855053,-3077.78,0.00059726,120]
[342795016,1732140855062,-656.88,0.00059726,120]
[342795017,1732140855072,-1550.26,0.00059726,120]
[342795018,1732140855082,-500.0,0.00059726,120]
[342795019,1732140855092,-725.78,0.00059726,120]
[342795020,1732140855101,-5411.3,0.00059726,120]
[342795021,1732140855111,-996.23,0.00059726,120]
[342795022,1732140855120,-4393.1,0.00059726,120]
[342795023,1732140855130,-1967.61,0.00059726,120]
[342795024,1732140855140,-535.35,0.00059726,120]
[342795025,1732140855149,-1127.77,0.00059726,120]
[342795026,1732140855158,-580.25,0.00059726,120]
[342795027,1732140855167,-559.06,0.00059726,120]
[342795028,1732140855176,-570.31,0.00059726,120]
[342795029,1732140855190,-8863.78,0.00059726,120]
[342795030,1732140855200,-604.62,0.00059726,120]
[342795031,1732140855209,-2040.5,0.00059726,120]
[342795032,1732140855218,-1500.0,0.00059726,120]
[342795033,1732140855228,-7043.87,0.00059726,120]
[342795034,1732140855238,-2305.42,0.00059726,120]
[342795035,1732140855247,-762.69,0.00059726,120]
[342795036,1732140855259,-713.08,0.00059726,120]
[342795037,1732140855268,-1604.28,0.00059726,120]
[342795038,1732140855277,-500.0,0.00059726,120]
[342795039,1732140855288,-1101.03,0.00059726,120]
[342795040,1732140855298,-1320.75,0.00059726,120]
[342795041,1732140855307,-500.0,0.00059726,120]
[342795042,1732140855316,-5594.76,0.00059726,120]
[342795043,1732140855325,-500.0,0.00059726,120]
[342795044,1732140855336,-1100.57,0.00059726,120]
[342795045,1732140855346,-918.38,0.00059726,120]
[342795046,1732140855355,-3670.68,0.00059726,120]
[342795047,1732140855364,-561.2,0.00059726,120]
[342795048,1732140855374,-250000.0,0.000598,120]
[342795049,1732140855522,-597.23,0.000598,120]
[342795050,1732140855532,-385803.06467612,0.000598,120]
[342795051,1732140856699,-4954.08523623,0.000598,120]
[342795052,1732140856753,-252.86,0.00054,120]
[342795053,1732140856763,-301.75863716,0.00055068,120]
[342795054,1732140856774,-966.97,0.0005589,120]
[342795055,1732140856785,-3478.41136284,0.000598,120]
[342795056,1732140856796,-3510.145464,0.000598,120]
[342795057,1732140856819,-252.86,0.00054,120]
[342795058,1732140856829,-500.0,0.00055068,120]
[342795059,1732140856838,-4360.305673,0.00056438,120]
[342795060,1732140856847,-1894043.82870432,0.000598,120]
[342795061,1732140856857,-15000.0,0.0005986,30]
[342795062,1732140856866,-254983.49921148,0.0005988,30]
[342795063,1732140856876,-62396.11712412,0.00059893,120]
[342795064,1732140856885,-1407.10997315,0.000599,120]
[342795065,1732140856894,-2972.94341432,0.000599,120]
[342795066,1732140856904,-412.9932845,0.0005994,120]
[342795067,1732140856914,-203.29680531,0.0005994,120]
[342795068,1732140856924,-150.0,0.0005994,120]
[342795069,1732140856934,-150.0,0.0005994,120]
[342795070,1732140856943,-180.28004439,0.0005994,120]
[342795071,1732140856953,-150.0,0.0005994,120]
[342795072,1732140856962,-150.0,0.0005994,120]
[342795073,1732140856972,-150.0,0.0005994,120]
[342795074,1732140856981,-150.0,0.0005994,120]
[342795075,1732140856990,-150.0,0.0005994,120]
[342795076,1732140857000,-150.0,0.0005994,120]
[342795077,1732140857010,-150.0,0.0005994,120]
[342795078,1732140857020,-150.0,0.0005994,120]
[342795079,1732140857030,-150.0,0.0005994,120]
[342795080,1732140857042,-150.0,0.0005995,14]
[342795081,1732140857052,-417.84639887,0.00059985,120]
[342795082,1732140857062,-3169.49,0.0005999,120]
[342795083,1732140857072,-789.82,0.00059999,120]
[342795084,1732140857081,-907.52,0.00059999,120]
[342795085,1732140857091,-676.32,0.00059999,120]
[342795086,1732140857100,-690.77,0.00059999,120]
[342795087,1732140857109,-480.85460151,0.00059999,120]
[342795088,1732140857119,-802.91,0.00059999,120]
[342795089,1732140857129,-1078.99,0.00059999,120]
[342795090,1732140857139,-1196.86,0.00059999,120]
[342795091,1732140857149,-1553.66,0.00059999,120]
[342795092,1732140857158,-500.0,0.00059999,120]
[342795093,1732140857167,-1468.02,0.00059999,120]
[342795094,1732140857177,-508.07044436,0.00059999,120]
[342795095,1732140857191,-1204.33,0.00059999,120]
[342795096,1732140857201,-689.54,0.00059999,120]
[342795097,1732140857210,-358.29126929,0.00059999,120]
[342795098,1732140857220,-500.0,0.00059999,120]
[342795099,1732140857230,-500.0,0.00059999,120]
[342795100,1732140857240,-3362.7,0.00059999,120]
[342795101,1732140857249,-2907.27,0.00059999,120]
[342795102,1732140857260,-1034.08,0.00059999,120]
[342795103,1732140857480,-500.0,0.00059999,120]
[342795104,1732140857491,-691.51,0.00059999,120]
[342795105,1732140857500,-577.45,0.00059999,120]
[342795106,1732140857510,-1141.42,0.00059999,120]
[342795107,1732140857520,-1067.52,0.00059999,120]
[342795108,1732140857529,-1047.06,0.00059999,120]
[342795109,1732140857542,-1588.94,0.00059999,120]
[342795110,1732140857552,-826.46,0.00059999,120]
[342795111,1732140857562,-883.47,0.00059999,120]
[342795112,1732140857572,-1125.72,0.00059999,120]
[342795113,1732140857582,-1116.01,0.00059999,120]
[342795114,1732140857592,-1198.91,0.00059999,120]
[342795115,1732140857602,-1410.51,0.00059999,120]
[342795116,1732140857612,-508.72,0.00059999,120]
[342795117,1732140857622,-347.8979847,0.00059999,120]
[342795118,1732140857631,-501.02,0.00059999,120]
[342795119,1732140857641,-854.5,0.00059999,120]
[342795120,1732140857651,-295.59490086,0.00059999,120]
[342795121,1732140857660,-923.86,0.00059999,120]
[342795122,1732140857670,-223.42,0.00059999,120]
[342795123,1732140857680,-500.0,0.00059999,60]
[342795124,1732140857690,-1843.46,0.00059999,120]
[342795125,1732140857700,-810.6,0.00059999,120]
[342795126,1732140857712,-909.22,0.00059999,120]
[342795127,1732140857722,-533.52,0.00059999,120]
[342795128,1732140857732,-2415.23,0.00059999,120]
[342795129,1732140857742,-972.8,0.00059999,120]
[342795130,1732140857751,-1624.46,0.00059999,120]
[342795131,1732140857761,-530.46,0.00059999,120]
[342795132,1732140857770,-730.89,0.00059999,120]
[342795133,1732140857780,-615.39,0.00059999,120]
[342795134,1732140857790,-487.33150416,0.00059999,120]
[342795135,1732140857799,-515.66,0.00059999,120]
[342795136,1732140857809,-783.6,0.00059999,120]
[342795137,1732140857819,-524.36,0.00059999,120]
[342795138,1732140857829,-1852.69,0.00059999,120]
[342795139,1732140857839,-713.08,0.00059999,120]
[342795140,1732140857848,-729.05,0.00059999,120]
[342795141,1732140857858,-2435.5,0.00059999,120]
[342795142,1732140857867,-521.8,0.00059999,120]
[342795143,1732140857877,-642.48,0.00059999,120]
[342795144,1732140857887,-849.85,0.00059999,120]
[342795145,1732140857896,-627.45,0.00059999,120]
[342795146,1732140857907,-858.26,0.00059999,120]
[342795147,1732140857915,-503.51,0.00059999,120]
[342795148,1732140857925,-742.62,0.00059999,120]
[342795149,1732140857934,-2800.08,0.00059999,120]
[342795150,1732140857943,-563.45,0.00059999,120]
[342795151,1732140857952,-1104.08,0.00059999,120]
[342795152,1732140857961,-1222.85,0.00059999,120]
[342795153,1732140857972,-1021.61,0.00059999,120]
[342795154,1732140857982,-578.33,0.00059999,120]
[342795155,1732140857992,-1661.17,0.00059999,120]
[342795156,1732140858001,-800.14,0.00059999,120]
[342795157,1732140858010,-329.39497708,0.00059999,120]
[342795158,1732140858020,-1090.19,0.00059999,120]
[342795159,1732140858029,-1054.3,0.00059999,120]
[342795160,1732140858041,-1209.25,0.00059999,120]
[342795161,1732140858052,-500.0,0.00059999,120]
[342795162,1732140858061,-1267.34,0.00059999,120]
[342795163,1732140858070,-2432.38,0.00059999,7]
[342795164,1732140858080,-1560.72,0.00059999,120]
[342795165,1732140858090,-1127.18,0.00059999,120]
[342795166,1732140858099,-1047.78,0.00059999,120]
[342795167,1732140858111,-655.09,0.00059999,120]
[342795168,1732140858122,-511.72990047,0.00059999,120]
[342795169,1732140858131,-1376.36,0.00059999,120]
[342795170,1732140858141,-758.47,0.00059999,120]
[342795171,1732140858150,-1218.68,0.00059999,120]
[342795172,1732140858160,-1031.21,0.00059999,120]
[342795173,1732140858169,-746.97,0.00059999,120]
[342795174,1732140858179,-351.09915742,0.00059999,120]
[342795175,1732140858191,-859.85,0.00059999,120]
[342795176,1732140858200,-1530.02,0.00059999,120]
[342795177,1732140858209,-1956.13,0.00059999,120]
[342795178,1732140858218,-626.84,0.00059999,120]
[342795179,1732140858228,-925.63,0.00059999,120]
[342795180,1732140858237,-1089.2,0.00059999,120]
[342795181,1732140858247,-500.0,0.00059999,120]
[342795182,1732140858257,-746.22,0.00059999,120]
[342795183,1732140858266,-1753.04,0.00059999,120]
[342795184,1732140858275,-1615.28,0.00059999,120]
[342795185,1732140858284,-750.0,0.00059999,120]
[342795186,1732140858294,-2808.16,0.00059999,120]
[342795187,1732140858303,-628.55,0.00059999,120]
[342795188,1732140858313,-1040.43,0.00059999,120]
[342795189,1732140858322,-679.38,0.00059999,120]
[342795190,1732140858331,-579.85,0.00059999,120]
[342795191,1732140858340,-1233.54,0.00059999,120]
[342795192,1732140858349,-560.33,0.00059999,120]
[342795193,1732140858359,-2720.22,0.00059999,120]
[342795194,1732140858369,-1140.69,0.00059999,120]
[342795195,1732140858378,-1241.7,0.00059999,120]
[342795196,1732140858388,-673.6,0.00059999,120]
[342795197,1732140858398,-1595.79,0.00059999,120]
[342795198,1732140858408,-690.2,0.00059999,120]
[342795199,1732140858417,-614.35,0.00059999,120]
[342795200,1732140858427,-1420.27,0.00059999,120]
[342795201,1732140858436,-500.0,0.00059999,120]
[342795202,1732140858447,-1747.91,0.00059999,120]
[342795203,1732140858456,-1026.85,0.00059999,120]
[342795204,1732140858466,-1208.59,0.00059999,120]
[342795205,1732140858475,-813.38,0.00059999,120]
[342795206,1732140858485,-509.94,0.00059999,120]
[342795207,1732140858495,-547.23,0.00059999,120]
[342795208,1732140858504,-1929.2,0.00059999,120]
[342795209,1732140858514,-983.72,0.00059999,120]
[342795210,1732140858525,-1133.87,0.00059999,120]
[342795211,1732140858535,-2243.95,0.00059999,120]
[342795212,1732140858544,-253.13378314,0.00059999,120]
[342795213,1732140858553,-837.29,0.00059999,120]
[342795214,1732140858562,-601.65,0.00059999,120]
[342795215,1732140858571,-500.0,0.00059999,120]
[342795216,1732140858581,-1244.02,0.00059999,120]
[342795217,1732140858590,-338.60063233,0.00059999,120]
[342795218,1732140858599,-581.48,0.00059999,120]
[342795219,1732140858608,-912.77,0.00059999,120]
[342795220,1732140858618,-822.59,0.00059999,120]
[342795221,1732140858627,-1640.54,0.00059999,120]
[342795222,1732140858637,-957.41,0.00059999,120]
[342795223,1732140858647,-3305.34,0.00059999,120]
[342795224,1732140858656,-546.92,0.00059999,120]
[342795225,1732140858666,-500.0,0.00059999,120]
[342795226,1732140858676,-1590.28,0.00059999,120]
[342795227,1732140858686,-4503.54,0.00059999,120]
[342795228,1732140858696,-2459.56,0.00059999,120]
[342795229,1732140858705,-5054.97,0.00059999,120]
[342795230,1732140858714,-1237.62,0.00059999,120]
[342795231,1732140858723,-500.0,0.00059999,120]
[342795232,1732140858732,-1705.69,0.00059999,120]
[342795233,1732140858741,-1805.81,0.00059999,120]
[342795234,1732140858750,-730.02,0.00059999,120]
[342795235,1732140858759,-556.28,0.00059999,120]
[342795236,1732140858768,-1293.03,0.00059999,120]
[342795237,1732140858777,-735.83,0.00059999,120]
[342795238,1732140858787,-875.45,0.00059999,120]
[342795239,1732140858796,-2355.16,0.00059999,120]
[342795240,1732140858805,-529.9,0.00059999,120]
[342795241,1732140858814,-1065.14,0.00059999,120]
[342795242,1732140858823,-1626.59,0.00059999,120]
[342795243,1732140858832,-899.71,0.00059999,120]
[342795244,1732140858841,-1031.07,0.00059999,120]
[342795245,1732140858850,-2139.66,0.00059999,120]
[342795246,1732140858859,-1746.7,0.00059999,120]
[342795247,1732140858868,-810.50410549,0.00059999,30]
[342795248,1732140858878,-525.57,0.00059999,120]
[342795249,1732140858887,-1007.82,0.00059999,120]
[342795250,1732140858896,-342.22296118,0.00059999,120]
[342795251,1732140858906,-525.94,0.00059999,120]
[342795252,1732140858915,-800.11,0.00059999,120]
[342795253,1732140858924,-3332.16,0.00059999,120]
[342795254,1732140858933,-2450.69,0.00059999,120]
[342795255,1732140858943,-1123.27,0.00059999,120]
[342795256,1732140858953,-1393.96,0.00059999,120]
[342795257,1732140858963,-967.57,0.00059999,120]
[342795258,1732140858972,-500.0,0.00059999,120]
[342795259,1732140858981,-1357.65,0.00059999,120]
[342795260,1732140858990,-500.0,0.00059999,120]
[342795261,1732140858999,-1642.87,0.00059999,120]
[342795262,1732140859009,-1588.79,0.00059999,90]
[342795263,1732140859019,-500.0,0.00059999,120]
[342795264,1732140859028,-1853.26,0.00059999,120]
[342795265,1732140859038,-1717.17,0.00059999,120]
[342795266,1732140859047,-700.0,0.00059999,120]
[342795267,1732140859056,-2546.22,0.00059999,120]
[342795268,1732140859066,-2834.37,0.00059999,120]
[342795269,1732140859075,-1334.03,0.00059999,120]
[342795270,1732140859085,-2885.23,0.00059999,120]
[342795271,1732140859094,-4453.81,0.00059999,120]
[342795272,1732140859103,-2241.05,0.00059999,120]
[342795273,1732140859113,-2217.98,0.00059999,120]
[342795274,1732140859122,-1402.45,0.00059999,60]
[342795275,1732140859132,-800.61,0.00059999,120]
[342795276,1732140859141,-500.0,0.00059999,120]
[342795277,1732140859150,-932.27,0.00059999,120]
[342795278,1732140859160,-2000.63,0.00059999,120]
[342795279,1732140859169,-1004.07,0.00059999,120]
[342795280,1732140859179,-703.55,0.00059999,120]
[342795281,1732140859191,-1132.68,0.00059999,120]
[342795282,1732140859200,-596.11,0.00059999,120]
[342795283,1732140859210,-794.52,0.00059999,120]
[342795284,1732140859219,-833.99,0.00059999,120]
[342795285,1732140859230,-2777.12,0.00059999,120]
[342795286,1732140859239,-1309.21,0.00059999,120]
[342795287,1732140859249,-2241.76,0.00059999,120]
[342795288,1732140859261,-1558.24,0.00059999,120]
[342795289,1732140859271,-569.73218199,0.00059999,120]
[342795290,1732140859280,-500.08,0.00059999,120]
[342795291,1732140859289,-2539.87,0.00059999,120]
[342795292,1732140859298,-831.36,0.00059999,120]
[342795293,1732140859307,-1743.89,0.00059999,120]
[342795294,1732140859316,-335.1663029,0.00059999,120]
[342795295,1732140859325,-1365.28,0.00059999,120]
[342795296,1732140859335,-1229.75,0.00059999,120]
[342795297,1732140859344,-1290.22,0.00059999,120]
[342795298,1732140859354,-507.82,0.00059999,120]
[342795299,1732140859363,-3045.72,0.00059999,120]
[342795300,1732140859372,-916.6,0.00059999,120]
[342795301,1732140859381,-500.0,0.00059999,120]
[342795302,1732140859392,-610.75,0.00059999,120]
[342795303,1732140859402,-500.0,0.00059999,120]
[342795304,1732140859411,-502.86,0.00059999,120]
[342795305,1732140859421,-504.52,0.00059999,120]
[342795306,1732140859430,-1278.95,0.00059999,120]
[342795307,1732140859440,-702.18,0.00059999,120]
[342795308,1732140859449,-479.56,0.00059999,120]
[342795309,1732140859459,-3583.6,0.00059999,120]
[342795310,1732140859468,-1685.95,0.00059999,120]
[342795311,1732140859478,-5689.68,0.00059999,120]
[342795312,1732140859487,-1343.23,0.00059999,120]
[342795313,1732140859497,-553.27,0.00059999,120]
[342795314,1732140859506,-1250.26,0.00059999,120]
[342795315,1732140859515,-982.33,0.00059999,120]
[342795316,1732140859524,-500.0,0.00059999,120]
[342795317,1732140859534,-667.62,0.00059999,120]
[342795318,1732140859543,-500.0,0.00059999,120]
[342795319,1732140859552,-609.95,0.00059999,120]
[342795320,1732140859562,-808.05,0.00059999,120]
[342795321,1732140859572,-522.08,0.00059999,120]
[342795322,1732140859582,-1111.01,0.00059999,120]
[342795323,1732140859592,-671.78,0.00059999,120]
[342795324,1732140859602,-1704.12,0.00059999,120]
[342795325,1732140859612,-2102.13,0.00059999,120]
[342795326,1732140859621,-500.0,0.00059999,120]
[342795327,1732140859631,-907.83,0.00059999,120]
[342795328,1732140859641,-1034.91,0.00059999,120]
[342795329,1732140859650,-5007.0,0.00059999,120]
[342795330,1732140859660,-2296.76,0.00059999,20]
[342795331,1732140859670,-500.0,0.00059999,120]
[342795332,1732140859679,-675.74,0.00059999,120]
[342795333,1732140859689,-798.21,0.00059999,120]
[342795334,1732140859699,-647.62,0.00059999,120]
[342795335,1732140859708,-2489.82,0.00059999,120]
[342795336,1732140859718,-2045.61,0.00059999,120]
[342795337,1732140859727,-1208.94,0.00059999,120]
[342795338,1732140859736,-721.64,0.00059999,120]
[342795339,1732140859745,-1591.78,0.00059999,120]
[342795340,1732140859755,-972.27,0.00059999,120]
[342795341,1732140859764,-1887.72,0.00059999,120]
[342795342,1732140859773,-850.0,0.00059999,120]
[342795343,1732140859783,-852.01,0.00059999,120]
[342795344,1732140859793,-872.84,0.00059999,120]
[342795345,1732140859802,-846.36,0.00059999,120]
[342795346,1732140859811,-865.82,0.00059999,120]
[342795347,1732140859820,-1191.88,0.00059999,120]
[342795348,1732140859829,-5749.44,0.00059999,120]
[342795349,1732140859839,-500.0,0.00059999,120]
[342795350,1732140859848,-500.0,0.00059999,120]
[342795351,1732140859857,-706.66,0.00059999,120]
[342795352,1732140859866,-1792.7,0.00059999,120]
[342795353,1732140859876,-669.11,0.00059999,120]
[342795354,1732140859885,-571.98,0.00059999,120]
[342795355,1732140859895,-688.41,0.00059999,120]
[342795356,1732140859905,-710.75,0.00059999,120]
[342795357,1732140859914,-2203.93,0.00059999,120]
[342795358,1732140859923,-600.76,0.00059999,120]
[342795359,1732140859933,-723.74,0.00059999,120]
[342795360,1732140859943,-962.75,0.00059999,120]
[342795361,1732140859953,-1092.67,0.00059999,120]
[342795362,1732140859962,-988.55,0.00059999,120]
[342795363,1732140859971,-690.54,0.00059999,120]
[342795364,1732140859980,-2304.78,0.00059999,120]
[342795365,1732140859991,-843.9,0.00059999,120]
[342795366,1732140860000,-1647.87,0.00059999,120]
[342795367,1732140860010,-850.55,0.00059999,120]
[342795368,1732140860019,-809.67,0.00059999,120]
[342795369,1732140860029,-683.97,0.00059999,120]
[342795370,1732140860038,-834.1,0.00059999,120]
[342795371,1732140860048,-914.77,0.00059999,120]
[342795372,1732140860058,-1141.14,0.00059999,120]
[342795373,1732140860067,-500.0,0.00059999,120]
[342795374,1732140860076,-624.59,0.00059999,120]
[342795375,1732140860086,-1109.8,0.00059999,120]
[342795376,1732140860095,-1752.52,0.00059999,120]
[342795377,1732140860105,-1096.46,0.00059999,120]
[342795378,1732140860114,-950.07,0.00059999,120]
[342795379,1732140860125,-1422.3,0.00059999,120]
[342795380,1732140860135,-2142.92,0.00059999,120]
[342795381,1732140860145,-829.0,0.00059999,120]
[342795382,1732140860154,-500.0,0.00059999,120]
[342795383,1732140860163,-737.82,0.00059999,120]
[342795384,1732140860173,-1778.99,0.00059999,120]
[342795385,1732140860184,-666.21,0.00059999,120]
[342795386,1732140860193,-575.3,0.00059999,120]
[342795387,1732140860202,-1715.56,0.00059999,120]
[342795388,1732140860213,-1062.65,0.00059999,120]
[342795389,1732140860222,-318.18070705,0.00059999,120]
[342795390,1732140860231,-2346.15,0.00059999,120]
[342795391,1732140860240,-949.47,0.00059999,120]
[342795392,1732140860250,-1351.22,0.00059999,120]
[342795393,1732140860261,-888.32,0.00059999,120]
[342795394,1732140860270,-880.81,0.00059999,120]
[342795395,1732140860279,-642.33,0.00059999,120]
[342795396,1732140860288,-6141.54,0.00059999,120]
[342795397,1732140860297,-1511.19,0.00059999,120]
[342795398,1732140860306,-597.52,0.00059999,120]
[342795399,1732140860315,-1086.04,0.00059999,120]
[342795400,1732140860324,-668.34,0.00059999,120]
[342795401,1732140860333,-1492.04,0.00059999,120]
[342795402,1732140860343,-926.38,0.00059999,120]
[342795403,1732140860352,-1351.32,0.00059999,120]
[342795404,1732140860361,-695.0,0.00059999,120]
[342795405,1732140860370,-5287.99,0.00059999,120]
[342795406,1732140860379,-845.23,0.00059999,120]
[342795407,1732140860389,-1482.2,0.00059999,120]
[342795408,1732140860398,-1260.12,0.00059999,120]
[342795409,1732140860408,-1283.29,0.00059999,120]
[342795410,1732140860418,-1393.35,0.00059999,120]
[342795411,1732140860427,-500.0,0.00059999,120]
[342795412,1732140860437,-555.36741497,0.00059999,120]
[342795413,1732140860446,-2642.2,0.00059999,120]
[342795414,1732140860456,-1536.4,0.00059999,120]
[342795415,1732140860465,-3168.55,0.00059999,120]